bitfinex-derivatives/quotes_SOLF0:USTF0_20250413
["timestamp","ask_amount","ask_price","bid_price","bid_amount"]
[1744585452355,26.44146542,127.03,126.91,3.50667234]
[1744585452857,0.05360958,126.98,126.91,2.136]
[1744585453860,0.05360958,126.98,126.95,6.3031]
[1744585454255,0.05360958,126.98,126.91,2.136]
[1744585454660,33.7,127.05,126.95,24.45456542]
[1744585454858,33.7,127.05,126.91,2.136]
[1744585454859,33.7,127.08,127.04,6.2989]
[1744585455160,33.72,127.09,126.99,35.772]
[1744585455358,40.0168,127.09,127.04,6.2986]
[1744585455656,33.72,127.09,126.98,24.45456542]
[1744585455959,24.45456542,127.06,126.97,6.3023]
[1744585456159,361.4998717,127.08,126.92,62.39756542]
[1744585456160,24.45456542,127.03,126.92,4.223]
[1744585456362,35.8,127.02,126.92,4.223]
[1744585456559,42.1004,127.02,126.97,6.302]
[1744585457158,0.05072756,127.01,126.98,6.3018]
[1744585457663,0.05779828,127.01,126.93,33.72]
[1744585458061,0.05681641,126.98,126.93,33.72]
[1744585458558,0.05681641,126.98,126.97,6.3024]
[1744585458861,33.72,127.02,126.93,33.72]
[1744585459163,33.72,127.02,127.0,6.3006]
[1744585459963,33.77699059,127.02,127.0,6.35851551]
[1744585460369,33.77699059,127.02,127.0,0.05791551]
[1744585460755,0.05699059,127.02,127.0,0.05791551]
[1744585461061,33.72,127.06,127.0,0.05791551]
[1744585461265,6.2972,127.08,127.0,0.05791551]
[1744585461468,33.72,127.09,127.01,24.45456542]
[1744585461669,33.72,127.09,126.99,1.9689]
[1744585462163,0.05245386,127.05,127.03,0.05905283]
[1744585462563,0.05245386,127.05,127.04,6.2989]
[1744585462770,33.72,127.09,127.03,0.05905283]
[1744585462963,33.72,127.09,127.07,6.2972]
[1744585463157,33.72,127.09,127.02,33.72]
[1744585463365,33.72,127.12,127.04,24.45456542]
[1744585463661,33.72,127.15,127.07,24.45456542]
[1744585463866,0.05115822,127.09,127.07,58.22751668]
[1744585464168,33.72,127.15,127.07,58.22751668]
[1744585464169,40.0135,127.15,127.11,6.2952]
[1744585464365,35.824,127.18,127.07,58.22583168]
[1744585464668,0.05213479,127.14,127.11,0.05583664]
[1744585465271,0.05213479,127.14,127.13,6.2945]
[1744585465568,0.05213479,127.14,127.11,0.05583664]
[1744585465767,0.05213479,127.14,127.12,6.2947]
[1744585466069,0.05213479,127.14,127.11,0.05583664]
[1744585466768,0.05213479,127.14,127.13,6.2945]
[1744585468073,3.479e-05,127.14,127.13,6.2945]
[1744585474877,33.72,127.21,127.12,15.01609691]
[1744585475774,40.0107,127.21,127.18,6.2919]
[1744585475977,33.72,127.21,127.18,6.2919]
[1744585476174,33.78012538,127.21,127.18,6.34609224]
[1744585477073,40.07072538,127.21,127.18,6.34609224]
[1744585477478,33.78012538,127.21,127.18,0.05419224]
[1744585477975,41.64012538,127.21,127.09,17.05859691]
[1744585478279,15.01609691,127.16,127.05,623.5]
[1744585478480,35.8784,127.15,127.05,625.522]
[1744585478774,6.2945,127.13,127.1,6.2957]
[1744585479273,6.34570233,127.13,127.1,6.35083595]
[1744585479478,0.05120233,127.13,127.1,0.05513595]
[1744585480372,15.06729924,127.13,127.04,35.8267]
[1744585480571,15.06729924,127.13,127.02,2.1193]
[1744585480775,6.2965,127.09,127.06,6.2977]
[1744585480978,40.4565,127.09,127.06,6.2977]
[1744585481381,40.4565,127.09,127.01,1.9828]
[1744585481382,34.16,127.09,127.01,1.9828]
[1744585481580,2.0516,127.08,127.06,0.05372432]
[1744585481980,6.2979,127.07,127.06,0.05046469]
[1744585483780,8.40552652,127.08,127.06,0.05046469]
[1744585483971,2.10842652,127.08,127.06,0.05046469]
[1744585484377,0.05682652,127.08,127.06,0.05046469]
[1744585484883,0.05682652,127.08,127.07,6.2975]
[1744585487580,34.18,127.16,127.07,57.05609691]
[1744585487774,34.18,127.16,127.07,51.17729691]
[1744585488182,6.2937,127.15,127.07,51.17729691]
[1744585488384,34.18,127.16,127.07,36.1612]
[1744585488584,34.18,127.16,127.1,6.2956]
[1744585488785,0.05797194,127.13,127.1,6.35463616]
[1744585489083,0.05797194,127.13,127.1,0.05903616]
[1744585491082,0.05797194,127.13,127.12,6.295]
[1744585491688,0.05797194,127.13,127.1,0.05903616]
[1744585493786,34.18,127.21,127.12,15.01609691]
[1744585493986,34.18,127.21,127.13,1.9833]
[1744585494480,40.4708,127.21,127.17,6.292]
[1744585494880,0.0604767,127.2,127.18,0.05262098]
[1744585495889,0.0604767,127.2,127.18,6.34442098]
[1744585496092,0.0604767,127.2,127.18,0.05262098]
[1744585497293,0.0604767,127.2,127.18,6.34452098]
[1744585498891,6.3516767,127.2,127.18,0.05262098]
[1744585499090,0.0604767,127.2,127.18,0.05262098]
[1744585499391,0.0604767,127.2,127.18,6.34442098]
[1744585499894,0.0604767,127.2,127.18,0.05262098]
[1744585500496,0.0604767,127.2,127.18,6.34442098]
[1744585502087,0.0604767,127.2,127.18,0.05262098]
[1744585502695,998.15609691,127.19,127.04,34.16]
[1744585502898,15.01609691,127.16,127.04,36.1658]
[1744585503092,38.277,127.18,127.04,37.53507012]
[1744585503404,34.16,127.22,127.12,15.01609691]
[1744585503698,34.16,127.22,127.15,6.2932]
[1744585503888,0.05740127,127.18,127.16,0.05388239]
[1744585504090,6.2929,127.17,127.13,6.2942]
[1744585504291,40.4529,127.17,127.16,0.05180228]
[1744585504598,34.16,127.17,127.16,0.05180228]
[1744585505193,34.16,127.17,127.07,34.16]
[1744585505398,4.2255,127.16,127.07,34.16]
[1744585505793,6.2948,127.13,127.09,6.296]
[1744585505990,34.16,127.13,127.09,6.296]
[1744585506196,6.2957,127.11,127.08,6.2969]
[1744585506396,6.2957,127.11,127.1,0.05838413]
[1744585507098,6.35342456,127.12,127.1,0.05838413]
[1744585507595,0.05822456,127.12,127.1,0.05838413]
[1744585510099,6.2955,127.11,127.1,0.05838413]
[1744585511794,2.18062456,127.12,127.01,39.3846665]
[1744585511795,6.2969,127.09,127.01,39.3846665]
[1744585512000,6.2969,127.09,127.01,38.0151]
[1744585512001,33.8,127.09,127.01,38.0151]
[1744585512299,35.9224,127.12,127.03,15.01609691]
[1744585512598,33.8,127.14,127.03,15.01609691]
[1744585513100,33.8,127.14,127.07,0.05685546]
[1744585513293,4.664e-05,127.1,127.07,35.94855546]
[1744585514499,4.664e-05,127.1,127.08,4.1605]
[1744585514801,4.664e-05,127.1,127.09,6.2965]
[1744585515003,33.8,127.18,127.09,15.01609691]
[1744585515704,183.78243326,127.27,127.15,15.01609691]
[1744585516002,6.2903,127.22,127.18,6.2916]
[1744585516300,0.05817543,127.21,127.19,0.05935303]
[1744585516699,33.85817543,127.21,127.13,2.0252]
[1744585517002,33.8,127.21,127.13,2.0252]
[1744585517203,33.8,127.21,127.18,6.2917]
[1744585517803,33.85092246,127.21,127.18,0.05583768]
[1744585520198,33.85092246,127.21,127.18,6.34753768]
[1744585520905,0.05092246,127.21,127.18,0.05583768]
[1744585521304,33.78,127.27,127.18,0.05583768]
[1744585521604,40.0678,127.27,127.23,6.2893]
[1744585521794,40.0678,127.27,127.17,19.04729691]
[1744585521998,40.0678,127.27,127.23,6.2892]
[1744585522203,6.2882,127.26,127.23,6.2892]
[1744585522407,0.05077331,127.26,127.24,0.05777599]
[1744585523605,6.33887331,127.26,127.24,0.05777599]
[1744585525105,0.05077331,127.26,127.24,0.05777599]
[1744585525615,0.05077331,127.26,127.24,6.34657599]
[1744585526608,0.05077331,127.26,127.25,6.2885]
[1744585527505,6.2854,127.32,127.25,6.2885]
[1744585527506,696.69681254,127.37,127.25,7.86]
[1744585527708,33.78,127.36,127.26,15.01609691]
[1744585527903,33.78,127.36,127.27,2.0736]
[1744585528109,6.2842,127.34,127.27,2.0736]
[1744585528611,0.05610903,127.32,127.3,6.2857]
[1744585528807,0.05610903,127.32,127.29,0.05141153]
[1744585529203,6.2859,127.31,127.29,0.05141153]
[1744585529614,33.83610903,127.32,127.29,0.05141153]
[1744585530613,33.83610903,127.32,127.29,6.33761153]
[1744585531116,33.83610903,127.32,127.29,0.05141153]
[1744585531505,0.05610903,127.32,127.29,0.05141153]
[1744585532415,33.76,127.31,127.29,0.05141153]
[1744585533812,40.046,127.31,127.29,0.05141153]
[1744585534013,33.76,127.31,127.29,0.05141153]
[1744585535410,0.05610903,127.32,127.29,0.05141153]
[1744585536118,0.05610903,127.32,127.31,6.2856]
[1744585536815,33.76,127.4,127.31,7.86]
[1744585537011,33.76,127.4,127.32,2.0296]
[1744585537208,40.0415,127.4,127.36,6.2829]
[1744585537407,33.76,127.4,127.34,33.76]
[1744585538016,0.05081998,127.38,127.36,0.05525089]
[1744585539217,0.05081998,127.38,127.37,6.2826]
[1744585540216,33.74,127.43,127.36,0.05525089]
[1744585540719,40.0199,127.43,127.4,6.2808]
[1744585541120,33.74,127.43,127.35,33.74]
[1744585541521,0.05236773,127.4,127.38,0.05302495]
[1744585541820,0.05236773,127.4,127.39,6.2814]
[1744585542013,0.05236773,127.4,127.38,0.05302495]
[1744585542319,6.33356773,127.4,127.38,0.05302495]
[1744585545927,0.05236773,127.4,127.38,0.05302495]
[1744585546125,6.773e-05,127.4,127.38,0.05302495]
[1744585546324,33.82,127.46,127.38,0.05302495]
[1744585546523,48.83609691,127.46,127.38,0.05302495]
[1744585546726,48.83609691,127.46,127.33,2.085]
[1744585546727,15.01609691,127.43,127.33,2.085]
[1744585546925,40.1004,127.42,127.38,6.2819]
[1744585547130,33.82,127.41,127.38,6.2819]
[1744585547632,33.8773867,127.41,127.39,0.05468491]
[1744585548027,6.2821,127.39,127.33,2.085]
[1744585548223,33.87093181,127.41,127.36,0.05865804]
[1744585548428,0.05137958,127.4,127.36,0.05865804]
[1744585548624,6.33287958,127.4,127.36,6.34145804]
[1744585549429,6.2817,127.39,127.36,0.05865804]
[1744585549636,4.03947958,127.4,127.36,0.05865804]
[1744585549931,6.2826,127.37,127.36,0.05865804]
[1744585550133,40.1026,127.37,127.36,0.05865804]
[1744585550933,33.82,127.37,127.36,0.05865804]
[1744585552433,33.82,127.37,127.36,6.34175804]
[1744585553636,33.82,127.37,127.36,0.05865804]
[1744585553834,33.82,127.37,127.29,6.2001]
[1744585554130,6.284,127.35,127.29,2.1266]
[1744585554835,33.82,127.37,127.28,2.1674]
[1744585555038,0.05030727,127.33,127.31,0.05421699]
[1744585555333,33.82,127.32,127.31,0.05421699]
[1744585556234,40.1051,127.32,127.31,0.05421699]
[1744585556535,33.82,127.32,127.31,0.05421699]
[1744585556730,33.82,127.32,127.31,6.33981699]
[1744585557036,0.05030727,127.33,127.31,0.05421699]
[1744585557336,0.05030727,127.33,127.31,6.33951699]
[1744585557736,0.05030727,127.33,127.31,0.05421699]
[1744585559234,0.05030727,127.33,127.31,6.33961699]
[1744585559940,0.05030727,127.33,127.31,0.05421699]
[1744585560639,33.82,127.38,127.31,0.05421699]
[1744585560938,33.82,127.38,127.31,38.17651699]
[1744585561135,33.82,127.38,127.34,6.284]
[1744585561332,33.82,127.38,127.31,38.1223]
[1744585561734,0.05180781,127.36,127.33,0.05852302]
[1744585562742,0.05180781,127.36,127.35,6.2836]
[1744585564042,0.05180781,127.36,127.34,6.2839]
[1744585564340,0.05180781,127.36,127.33,0.05852302]
[1744585564740,0.05180781,127.36,127.34,6.2841]
[1744585566545,0.05180781,127.36,127.33,0.05852302]
[1744585566744,0.05180781,127.36,127.27,33.82]
[1744585567044,15.01609691,127.33,127.24,33.82]
[1744585567344,37.8571,127.32,127.24,33.82]
[1744585567743,6.2859,127.31,127.27,6.2871]
[1744585567944,0.05143942,127.29,127.27,6.34087497]
[1744585568339,0.05143942,127.29,127.28,6.2871]
[1744585568548,4.2253,127.38,127.28,33.82]
[1744585568846,2.1671,127.38,127.35,6.2832]
[1744585569443,2.1671,127.38,127.3,15.01609691]
[1744585569643,2.22689679,127.38,127.35,0.05495192]
[1744585569845,2.1671,127.38,127.35,0.05495192]
[1744585570044,2.22196554,127.38,127.35,0.05495192]
[1744585572147,2.22196554,127.38,127.36,6.2831]
[1744585572942,2.22196554,127.38,127.35,0.05495192]
[1744585573648,6.2829,127.37,127.35,0.05495192]
[1744585574049,2.22196554,127.38,127.35,0.05495192]
[1744585574250,2.22196554,127.38,127.36,6.2831]
[1744585574442,2.22196554,127.38,127.35,0.05495192]
[1744585574643,2.22196554,127.38,127.36,6.283]
[1744585574947,2.22196554,127.38,127.35,0.05495192]
[1744585575352,6.2829,127.37,127.35,0.05495192]
[1744585575647,2.22196554,127.38,127.35,0.05495192]
[1744585575847,8.50436554,127.38,127.36,6.2831]
[1744585576050,2.22196554,127.38,127.36,6.2831]
[1744585576351,8.50436554,127.38,127.35,6.33835192]
[1744585578053,6.2831,127.36,127.35,0.05495192]
[1744585580452,8.3178,127.37,127.35,0.05495192]
[1744585580653,2.22196554,127.38,127.35,0.05495192]
[1744585581148,6.2827,127.37,127.35,0.05495192]
[1744585581356,17.23806245,127.38,127.28,33.82]
[1744585581652,6.2862,127.3,127.27,6.2872]
[1744585581854,33.52,127.31,127.22,6.1613]
[1744585582047,33.52,127.3,127.22,6.1613]
[1744585582249,35.4938,127.29,127.18,33.52]
[1744585582451,1.982,127.28,127.18,33.52]
[1744585582757,0.05651008,127.25,127.23,6.2895]
[1744585583052,33.57651008,127.25,127.23,6.2895]
[1744585584356,33.57651008,127.25,127.24,6.289]
[1744585584547,33.57651008,127.25,127.22,0.05308975]
[1744585585049,39.86551008,127.25,127.22,0.05308975]
[1744585585655,33.57651008,127.25,127.22,0.05308975]
[1744585586650,2.1729,127.24,127.14,15.01609691]
[1744585586855,33.52,127.25,127.22,6.2896]
[1744585587156,33.52,127.25,127.17,15.01609691]
[1744585587455,33.52,127.25,127.24,6.289]
[1744585588951,0.05276363,127.26,127.25,6.2885]
[1744585589248,33.52,127.31,127.28,6.2866]
[1744585589556,33.52,127.31,127.24,2.1127]
[1744585590250,33.52,127.31,127.24,35.6527]
[1744585590450,0.05664567,127.29,127.28,6.2871]
[1744585590850,0.05664567,127.29,127.26,0.05807844]
[1744585592565,0.05664567,127.29,127.28,6.2871]
[1744585592755,0.05664567,127.29,127.26,0.05807844]
[1744585594160,0.05664567,127.29,127.26,6.34587844]
[1744585594453,0.05664567,127.29,127.26,0.05807844]
[1744585594657,15.07274258,127.29,127.19,4.2406]
[1744585594853,15.01609691,127.26,127.15,2.064]
[1744585595057,35.6738,127.25,127.13,2.1779]
[1744585595254,658.1538,127.25,127.13,2.1779]
[1744585595560,6.2906,127.21,127.18,6.2917]
[1744585595759,39.8306,127.21,127.2,0.05095498]
[1744585596562,33.54,127.21,127.13,2.1779]
[1744585597561,39.8306,127.21,127.13,2.1779]
[1744585597863,0.04986739,127.18,127.16,0.04974159]
[1744585598159,622.48,127.25,127.16,0.04974159]
[1744585598364,33.54,127.25,127.17,15.01609691]
[1744585598555,33.54,127.25,127.18,2.1554]
[1744585599461,0.05904114,127.23,127.2,0.05381093]
[1744585599759,0.05904114,127.23,127.19,1.9887]
[1744585599962,0.05904114,127.23,127.2,0.06001629]
[1744585600162,0.05904114,127.23,127.22,6.29]
[1744585611360,4.114e-05,127.23,127.22,6.29]
[1744585611561,33.1,127.35,127.22,40.96]
[1744585611766,6.2828,127.37,127.28,15.01609691]
[1744585611961,39.3174,127.38,127.34,6.2839]
[1744585612267,80.09971254,127.37,127.29,37.2763]
[1744585612465,73.81681254,127.37,127.36,6.2831]
[1744585612662,0.0582477,127.34,127.32,0.05873953]
[1744585612855,73.81681254,127.37,127.33,33.1]
[1744585613166,73.81681254,127.37,127.36,6.2831]
[1744585613561,73.81681254,127.37,127.31,48.11609691]
[1744585613966,0.05438225,127.35,127.33,0.06006876]
[1744585614168,0.05438225,127.35,127.34,6.2841]
[1744585615964,0.05438225,127.35,127.33,6.34456876]
[1744585616470,0.05438225,127.35,127.34,6.2841]
[1744585617970,33.1,127.41,127.39,6.2815]
[1744585619271,33.15578408,127.41,127.39,6.33727595]
[1744585619470,33.15578408,127.41,127.39,0.05577595]
[1744585619771,33.15578408,127.41,127.32,33.08]
[1744585619972,6.2821,127.38,127.35,6.2832]
[1744585620271,33.1,127.41,127.32,33.08]
[1744585620768,0.05311973,127.38,127.35,0.05462018]
[1744585621172,6.33541973,127.38,127.35,6.33812018]
[1744585621372,0.05311973,127.38,127.35,0.05462018]
[1744585622373,6.33571973,127.38,127.35,0.05462018]
[1744585622570,6.33571973,127.38,127.3,2.1132]
[1744585622571,15.01609691,127.36,127.17,474.96993854]
[1744585622774,6.2878,127.27,127.23,6.2893]
[1744585622964,33.06,127.26,127.19,39.0270795]
[1744585623170,33.06,127.25,127.19,36.9899795]
[1744585623471,35.1115,127.25,127.16,11.31009487]
[1744585623674,0.05593535,127.23,127.2,0.05401196]
[1744585624474,6.2904,127.22,127.2,0.05401196]
[1744585624673,33.06,127.21,127.2,0.05401196]
[1744585625174,0.05593535,127.23,127.2,0.05401196]
[1744585625675,0.05593535,127.23,127.2,6.34461196]
[1744585626470,0.05593535,127.23,127.2,0.05401196]
[1744585626675,33.08,127.3,127.21,15.01609691]
[1744585626876,6.2867,127.29,127.25,6.2882]
[1744585627076,33.08,127.3,127.22,2.141]
[1744585627479,39.3664,127.3,127.26,6.2877]
[1744585627783,0.05406542,127.29,127.27,0.05393316]
[1744585628479,33.08,127.32,127.27,0.05393316]
[1744585628875,33.08,127.36,127.27,15.07003007]
[1744585629076,6.2844,127.34,127.3,6.2858]
[1744585629271,33.08,127.36,127.28,33.08]
[1744585629686,0.05351741,127.33,127.31,0.0529143]
[1744585630280,0.05351741,127.33,127.32,6.2851]
[1744585630781,0.05351741,127.33,127.31,0.0529143]
[1744585632279,6.33831741,127.33,127.31,0.0529143]
[1744585632584,0.05351741,127.33,127.31,0.0529143]
[1744585633486,6.33831741,127.33,127.31,0.0529143]
[1744585633790,0.05351741,127.33,127.31,0.0529143]
[1744585634181,0.05351741,127.33,127.32,6.2851]
[1744585635188,6.2807,127.41,127.37,6.2824]
[1744585635386,33.64,127.42,127.33,17.04299691]
[1744585635686,33.64,127.42,127.33,19.02939691]
[1744585636388,8.3588,127.44,127.36,0.05645961]
[1744585636585,0.05385629,127.39,127.36,48.65609691]
[1744585636787,75.89081254,127.49,127.39,0.05244625]
[1744585636990,107.45681254,127.49,127.4,48.65609691]
[1744585637187,107.45681254,127.49,127.41,4.1776]
[1744585637490,107.45681254,127.49,127.45,6.2784]
[1744585637680,107.45681254,127.49,127.41,4.1776]
[1744585637882,0.05086352,127.48,127.46,0.05394962]
[1744585641488,33.67086352,127.48,127.46,0.05394962]
[1744585641689,6.2777,127.47,127.46,0.05394962]
[1744585642391,39.94826352,127.48,127.46,0.05394962]
[1744585642691,0.05086352,127.48,127.46,0.05394962]
[1744585643487,6.2777,127.47,127.46,0.05394962]
[1744585643688,0.05086352,127.48,127.46,0.05394962]
[1744585643890,0.05086352,127.48,127.46,6.33184962]
[1744585644392,0.05086352,127.48,127.47,6.2777]
[1744585644787,0.05086352,127.48,127.46,0.05394962]
[1744585645688,0.05086352,127.48,127.46,6.33174962]
[1744585645994,0.05086352,127.48,127.46,0.05394962]
[1744585647494,0.05086352,127.48,127.47,6.2777]
[1744585647894,0.05086352,127.48,127.46,0.05394962]
[1744585648093,0.05086352,127.48,127.46,6.33204962]
[1744585648294,0.05086352,127.48,127.46,0.05394962]
[1744585649994,6.2777,127.47,127.46,0.05394962]
[1744585650385,6.2787,127.46,127.42,6.2801]
[1744585650588,33.62,127.46,127.39,33.62]
[1744585650785,57.8953131,127.46,127.33,24.2753131]
[1744585650988,24.2753131,127.43,127.35,6.2833]
[1744585651192,35.642,127.42,127.31,33.62]
[1744585651392,6.282,127.39,127.36,6.2831]
[1744585651593,0.05937128,127.38,127.36,6.2831]
[1744585651896,0.05937128,127.38,127.35,6.33320048]
[1744585652196,6.2827,127.37,127.35,0.04990048]
[1744585652391,33.67937128,127.38,127.29,5.9683]
[1744585652690,623.702,127.42,127.3,24.2753131]
[1744585652691,657.322,127.42,127.3,24.2753131]
[1744585652894,35.5872,127.45,127.33,24.2753131]
[1744585653095,6.2797,127.43,127.34,33.62]
[1744585653697,0.05516733,127.4,127.37,0.04959649]
[1744585654094,0.05516733,127.4,127.39,6.2816]
[1744585654297,33.62,127.45,127.37,0.04959649]
[1744585654493,33.62,127.45,127.38,33.62]
[1744585654699,33.62,127.45,127.42,6.28]
[1744585655499,33.68011753,127.45,127.42,6.33766768]
[1744585656104,33.68011753,127.45,127.43,6.2797]
[1744585656401,33.68011753,127.45,127.42,0.05766768]
[1744585657098,0.06011753,127.45,127.42,0.05766768]
[1744585657300,0.06011753,127.45,127.44,6.2792]
[1744585658301,0.06011753,127.45,127.43,6.2795]
[1744585658496,0.06011753,127.45,127.42,0.05766768]
[1744585658799,0.06011753,127.45,127.44,6.2792]
[1744585658998,0.06011753,127.45,127.42,0.05766768]
[1744585659403,0.06011753,127.45,127.43,6.2797]
[1744585660602,0.06011753,127.45,127.42,0.05766768]
[1744585661506,0.06011753,127.45,127.44,6.2792]
[1744585663001,1.753e-05,127.45,127.44,6.2792]
[1744585663404,35.6377,127.52,127.5,6.2762]
[1744585663705,35.6377,127.52,127.46,33.54]
[1744585663906,41.9132,127.52,127.48,6.2768]
[1744585664108,41.9132,127.52,127.46,33.54]
[1744585664606,0.05038992,127.5,127.48,6.32891748]
[1744585665409,0.05038992,127.5,127.49,6.2767]
[1744585666106,0.05038992,127.5,127.48,0.05221748]
[1744585667209,0.05038992,127.5,127.49,6.2767]
[1744585670514,0.05038992,127.5,127.48,0.05221748]
[1744585671312,0.05038992,127.5,127.48,6.32911748]
[1744585673113,0.05038992,127.5,127.48,0.05221748]
[1744585673310,7.89038992,127.5,127.4,34.88497352]
[1744585673509,14.94804076,127.48,127.37,39.689]
[1744585673710,35.6482,127.47,127.37,39.689]
[1744585674214,33.52,127.47,127.37,39.689]
[1744585674614,0.05433775,127.43,127.41,0.060261]
[1744585674815,0.05433775,127.43,127.42,6.2802]
[1744585675616,2.1282,127.5,127.48,6.2768]
[1744585676219,2.1009,127.52,127.44,14.94804076]
[1744585676413,655.3,127.54,127.44,18.96584076]
[1744585676610,661.5745,127.54,127.5,6.2758]
[1744585676815,655.3,127.54,127.5,6.2758]
[1744585677220,0.05550381,127.53,127.46,33.52]
[1744585677420,0.05550381,127.53,127.52,6.2752]
[1744585679119,0.05550381,127.53,127.51,6.33423102]
[1744585679420,0.05550381,127.53,127.51,0.05873102]
[1744585680122,33.57550381,127.53,127.51,0.05873102]
[1744585680319,6.2752,127.52,127.51,0.05873102]
[1744585680529,41.41550381,127.53,127.44,2.0169]
[1744585680821,39.795,127.53,127.49,6.2764]
[1744585681023,37.6723,127.56,127.47,14.94804076]
[1744585681323,37.6723,127.56,127.53,6.2745]
[1744585681720,37.72435874,127.56,127.53,6.33205741]
[1744585681921,43.99795874,127.56,127.53,0.05755741]
[1744585682425,37.72435874,127.56,127.53,0.05755741]
[1744585683328,37.72435874,127.56,127.53,6.33185741]
[1744585683521,33.57205874,127.56,127.53,0.05755741]
[1744585683825,33.57205874,127.56,127.54,6.2742]
[1744585684026,33.57205874,127.56,127.53,0.05755741]
[1744585684423,33.57205874,127.56,127.53,6.33185741]
[1744585684824,33.57205874,127.56,127.53,0.05755741]
[1744585686523,33.57205874,127.56,127.44,29.52234076]
[1744585686524,14.94804076,127.54,127.44,2.0169]
[1744585686926,6.2753,127.52,127.48,6.2768]
[1744585687127,39.7953,127.52,127.48,6.2768]
[1744585687326,33.52,127.52,127.44,2.0169]
[1744585687528,33.52,127.52,127.41,16.94764076]
[1744585687827,2.0153,127.51,127.41,16.94764076]
[1744585688030,6.2768,127.49,127.41,16.94764076]
[1744585688630,6.2768,127.49,127.45,6.2782]
[1744585688830,0.05318641,127.46,127.44,0.06038057]
[1744585689023,0.05318641,127.46,127.45,6.2787]
[1744585689220,0.05318641,127.46,127.44,0.06038057]
[1744585689626,0.05318641,127.46,127.45,6.2787]
[1744585690329,0.05318641,127.46,127.44,0.06038057]
[1744585691633,0.05318641,127.46,127.45,6.2787]
[1744585692834,0.05318641,127.46,127.44,6.33928057]
[1744585693031,0.05318641,127.46,127.44,0.06038057]
[1744585693928,6.2787,127.45,127.44,0.06038057]
[1744585694132,0.05318641,127.46,127.44,0.06038057]
[1744585694834,0.05318641,127.46,127.44,6.33928057]
[1744585695035,0.05318641,127.46,127.44,0.06038057]
[1744585695431,0.05318641,127.46,127.45,6.2787]
[1744585695637,0.05318641,127.46,127.44,0.06038057]
[1744585696737,6.2787,127.45,127.44,0.06038057]
[1744585697039,0.05318641,127.46,127.37,35.846]
[1744585697239,6.2799,127.43,127.37,35.846]
[1744585697434,4.0818,127.46,127.37,35.846]
[1744585697731,6.2793,127.44,127.37,35.846]
[1744585697937,4.0818,127.46,127.37,35.846]
[1744585698237,0.05402975,127.42,127.41,6.2807]
[1744585699332,0.05402975,127.42,127.39,6.33970843]
[1744585699638,0.05402975,127.42,127.39,0.05850843]
[1744585699831,0.05402975,127.42,127.41,6.2807]
[1744585703939,33.76,127.47,127.39,0.05850843]
[1744585704141,33.76,127.47,127.38,14.94804076]
[1744585704742,33.76,127.47,127.37,35.846]
[1744585704943,40.038,127.47,127.44,6.2792]
[1744585705143,33.8188042,127.47,127.37,35.846]
[1744585705341,33.76,127.47,127.44,0.05270518]
[1744585705541,0.05276254,127.43,127.37,35.846]
[1744585705740,37.9647,127.51,127.41,14.94804076]
[1744585705944,2.157,127.56,127.44,14.94804076]
[1744585706143,41.49096122,127.55,127.51,6.2753]
[1744585706342,40.054,127.55,127.51,6.2753]
[1744585706641,40.054,127.55,127.52,6.2752]
[1744585706844,33.83686047,127.55,127.52,6.32961899]
[1744585707944,40.11076047,127.55,127.52,6.32961899]
[1744585708245,33.83686047,127.55,127.52,0.05441899]
[1744585708444,40.11076047,127.55,127.52,0.05441899]
[1744585709046,40.11076047,127.55,127.52,6.32931899]
[1744585709240,6.2744,127.54,127.52,0.05441899]
[1744585709441,33.83686047,127.55,127.52,0.05441899]
[1744585709746,40.11086047,127.55,127.52,6.32961899]
[1744585710847,33.83686047,127.55,127.53,6.2746]
[1744585711039,33.83686047,127.55,127.52,0.05441899]
[1744585712047,33.81686047,127.55,127.53,6.2747]
[1744585712348,33.81686047,127.55,127.52,0.05441899]
[1744585712544,40.09086047,127.55,127.52,6.32931899]
[1744585713245,6.2743,127.54,127.52,0.05441899]
[1744585714048,6.2747,127.53,127.52,0.05441899]
[1744585714244,33.81686047,127.55,127.46,1.971]
[1744585714442,33.76,127.55,127.46,1.971]
[1744585714643,6.2749,127.53,127.5,6.2759]